Cogmind - Beta 16.1 @@@ ROGUE MODE // 2026.04.22 @ 12:35:09 Player: gamerman Result: Destroyed by W2-028(p) with EM Pulse Gun Performance ------------- Evolutions (0) 0 Regions Visited (3) 600 Robots Destroyed (10) 50 Value Destroyed (190) 190 Prototype IDs (12) 240 Alien Tech Used (0) 0 Bonus (260) 260 TOTAL SCORE: 1340 Bonus ------- Registered with UFD 300 Friendly Fire -40 Cogmind --------- Core Integrity 0/250 Matter 294/300 Energy 97/100 System Corruption 0% Temperature Cool (13) Movement Treading (160) Location -7/Scraptown Parts ------- > --- POWER (1) -------- (None) > --- PROPULSION (2) --- Medium Treads > --- UTILITY (2) ------ Medium Storage Unit Improved Targeting Computer > --- WEAPON (2) ------- Subdweller Machine Gun > --- INVENTORY (10) --- Light Treads Light Treads Targeting Computer Targeting Computer Weapon Cycler A0-MCA's Component Scanner Overtuned Barrage Gun Advanced Assault Cannon Greatsword Peak State ------------ > --- POWER ------------ Improved Deuterium Engine > --- PROPULSION ------- Improved Treads Medium Treads > --- UTILITY ---------- Medium Storage Unit Improved Targeting Computer > --- WEAPON ----------- Subdweller Machine Gun Advanced Assault Cannon > --- INVENTORY -------- Light Treads Light Treads Targeting Computer Targeting Computer Weapon Cycler A0-MCA's Component Scanner Overtuned Barrage Gun Advanced Assault Cannon Greatsword [Rating: 22] Favorites ----------- Power Improved Deuterium Engine Engine Improved Deuterium Engine Propulsion Light Treads Treads Light Treads Wheel Wheel Utility Medium Storage Unit Storage Medium Storage Unit Processor Improved Targeting Computer Protection Light Armor Plating Weapon Subdweller Machine Gun Ballistic Gun Subdweller Machine Gun Ballistic Cannon Advanced Assault Cannon Build | -11 -10 -10 -7 ------- Run | Yrd Mat Sub Scr Slots Evolved . | . . . . Power . | . . . . Propulsion . | . . . . Utility . | . . . . Weapon . | . . . . Parts Attached 17 | 9 2 1 5 Power 2 | 1 . . 1 Engine 2 | 1 . . 1 Core . | . . . . Reactor . | . . . . Propulsion 6 | 4 . . 2 Treads 4 | 2 . . 2 Leg . | . . . . Wheel 2 | 2 . . . Hover . | . . . . Flight . | . . . . Utility 4 | 1 2 . 1 Device . | . . . . Storage 2 | 1 1 . . Processor 1 | . . . 1 Hackware . | . . . . Protection 1 | . 1 . . Artifact . | . . . . Weapon 5 | 3 . 1 1 Energy Gun . | . . . . Energy Cannon . | . . . . Ballistic Gun 4 | 3 . 1 . Ballistic Cannon 1 | . . . 1 Launcher . | . . . . Special Weapon . | . . . . Impact Weapon . | . . . . Slashing Weapon . | . . . . Piercing Weapon . | . . . . Special Melee Weapon . | . . . . Unidentified Prototypes . | . . . . Parts Lost 5 | . . 3 2 Power 2 | . . 1 1 Propulsion 1 | . . . 1 Utility 1 | . . 1 . Weapon 1 | . . 1 . Highest Loss Streak 3 | . . 3 2 To Critical Strikes 1 | . . . 1 Average Backups 7 | 1 3 6 8 Power . | . . . . Propulsion 1 | 1 2 3 1 Utility 4 | . . 1 5 Weapon 2 | . 1 1 2 Tool/Special . | . . . . Unused Backups 15 | . . . 15 Power . | . . . . Propulsion 1 | . . . 1 Utility 8 | . . . 8 Weapon 6 | . . . 6 Tool/Special . | . . . . Average Slot Usage (%) 92 | . 98 94 91 Engine 13 | . 14 10 13 Treads 28 | . 28 28 28 Storage 14 | . 14 14 14 Processor 5 | . . . 6 Protection 2 | . 12 12 . Ballistic Gun 17 | . 28 26 14 Ballistic Cannon 10 | . . . 13 Peak Build Rating 22 | 6 7 9 22 Average Rating 16 | 5 6 7 19 On Entrance 4 | . 6 7 6 Avg Prop Armor Cover (%) . | . . . . Naked Turns . | . . . . Heaviest Build 30 | 14 24 24 30 Greatest Support 51 | 40 40 40 51 Greatest Overweight (x) . | . . . . Average Overweight (x) . | . . . . Largest Inventory Capacity 10 | 8 10 10 10 Average Capacity 9 | 7 9 10 10 Most Carried 10 | 5 4 10 10 Average Carried 8 | 1 3 7 9 Final Capacity 10 | 8 10 10 10 Final Carried 10 | 3 4 10 10 Class Distribution -------------------- 100% | Mutant Dominant Class ---------------- Mutant | -10/Materials Mutant | -10/Subcaves Mutant | -7/Scraptown Resources | -11 -10 -10 -7 ----------- Run | Yrd Mat Sub Scr Matter Collected 598 | 196 286 48 68 Remotely . | . . . . Salvage Created 456 | . 401 55 . Parts 19 | . 17 2 . Haulers Intercepted . | . . . . Recyclers Shooed 2 | . 2 . . Parts Field Recycled . | . . . . Retrieved Matter . | . . . . Parts Self-Destructed 2 | . . 2 . Prevented . | . . . . Parts Restored . | . . . . Kills | -11 -10 -10 -7 ------- Run | Yrd Mat Sub Scr Combat Hostiles Destroyed 7 | . 6 1 . Guns 7 | . 6 1 . Classes Destroyed 4 | . 3 1 . Recycler 3 | . 3 . . Swarmer 3 | . 3 . . Grunt 3 | . 3 . . Subdweller 1 | . . 1 . Best Kill Streak 5 | . 5 1 . Combat Bots Only 4 | . 4 1 . Max Kills in Single Turn 2 | . 2 1 . Gunslinging 1 | . 1 . . Exploded . | . . . . Melee . | . . . . Uniques/NPCs Destroyed . | . . . . Combat | -11 -10 -10 -7 -------- Run | Yrd Mat Sub Scr Hostile Shots Fired 101 | . 20 33 48 Missed 26 | . 6 10 10 Hits 75 | . 14 23 38 Melee 3 | . . . 3 Projectile 72 | . 14 23 35 Critical Strikes 8 | . 1 1 6 Damage Taken 1130 | . 132 509 489 Core 256 | . 11 161 84 Absorbed by Shields . | . . . . Regen/Repaired (Parts) 143 | . . . 143 Core Remaining (%) 100 | 100 . . . Volleys Fired 39 | . 28 8 3 Largest 2 | . 2 2 2 Hottest 70 | . 40 50 70 Shots Fired 77 | . 56 15 6 Gun 74 | . 56 15 3 Cannon 3 | . . . 3 Launcher . | . . . . Special . | . . . . Kinetic 77 | . 56 15 6 Thermal . | . . . . Explosive . | . . . . Electromagnetic . | . . . . Robot Hit Streak 7 | . 7 5 . Robot Miss Streak 5 | . 5 3 . Penetration Max . | . . . . Secondary Targets 1 | . 1 . . Max Gunslinging Chain 1 | . 1 . . Shots Hit Robots 43 | . 33 10 . Core Hits 16 | . 14 2 . Critical Kills 1 | . 1 . . Critical Parts Destroyed 1 | . 1 . . Critical Strikes 2 | . 2 . . Destroy 2 | . 2 . . Melee Attacks . | . . . . Impact . | . . . . Slashing . | . . . . Piercing . | . . . . Sneak Attacks . | . . . . Combat Hostiles . | . . . . Follow-up Attacks . | . . . . Damage Inflicted 548 | . 411 97 40 Guns 526 | . 411 97 18 Cannons 22 | . . . 22 Explosions . | . . . . Melee . | . . . . Ramming . | . . . . Kinetic 548 | . 411 97 40 Thermal . | . . . . Explosive . | . . . . Electromagnetic . | . . . . Impact . | . . . . Slashing . | . . . . Piercing . | . . . . Highest Corruption . | . . . . Average Corruption . | . . . . Corruption Purged . | . . . . Corruption Blocked . | . . . . Overload Shots . | . . . . Overflow Damage . | . . . . Projectiles . | . . . . Explosions . | . . . . Melee . | . . . . Knockbacks . | . . . . Impact . | . . . . Kinetic . | . . . . Secondary . | . . . . Self-Inflicted Damage . | . . . . Shots . | . . . . Rammed . | . . . . Targets Rammed . | . . . . Kicked . | . . . . Crushed . | . . . . Highest Temperature 259 | . 2 259 42 Average Temperature 52 | . 2 128 17 Received Heat Transfer 529 | . 36 408 85 Siege Activations . | . . . . Martial Activations . | . . . . Shielding Activations . | . . . . Robots Disrupted . | . . . . Combat Hostiles . | . . . . Robots Corrupted . | . . . . Combat Hostiles . | . . . . Parts Fried . | . . . . Impact Corruptions . | . . . . Robots Melted . | . . . . Combat Hostiles . | . . . . Parts Melted . | . . . . Heat Transferred . | . . . . Parts Sabotaged . | . . . . Parts Stolen . | . . . . Parts Stripped . | . . . . Power Chain Reactions . | . . . . Alert | -11 -10 -10 -7 ------- Run | Yrd Mat Sub Scr Maximum Alert Level . | . . . . Low Security (%) 100 | 100 100 . . Level 1 . | . . . . Level 2 . | . . . . Level 3 . | . . . . Level 4 . | . . . . Level 5 . | . . . . High Security . | . . . . Max Security . | . . . . Peak Influence 96 | . 96 . . Initial . | . . . . Average 30 | . 36 . . Influence Increases 156 | . 156 . . Destroy 0b10 Robot/C 120 | . 120 . . Destroy 0b10 Robot/NC 15 | . 15 . . Destroy Leader 20 | . 20 . . Destroy Structure 1 | . 1 . . Influence Decreases 156 | . 156 . . Time Decay 156 | . 156 . . Squads Dispatched 1 | . 1 . . Investigation . | . . . . Extermination . | . . . . Reinforcement 1 | . 1 . . Assault . | . . . . Garrison . | . . . . Intercept . | . . . . Searches Triggered . | . . . . Construction Impeded . | . . . . Haulers Reinforced . | . . . . Active Scanning Responses . | . . . . Cargo Convoy Interrupts . | . . . . Stealth | -11 -10 -10 -7 --------- Run | Yrd Mat Sub Scr Distress Signals . | . . . . Communications Jammed . | . . . . Distress Signals . | . . . . Times Spotted 29 | . 11 8 10 Peak Tracking Total 13 | . 4 7 13 Tactical Retreats . | . . . . Traps | -11 -10 -10 -7 ------- Run | Yrd Mat Sub Scr Traps Triggered . | . . . . Indirectly . | . . . . Trap Hack Attempts . | . . . . Triggered . | . . . . Disarmed . | . . . . Reprogrammed . | . . . . Reused . | . . . . Traps Extracted . | . . . . Installed . | . . . . Triggered . | . . . . Machines | -11 -10 -10 -7 ---------- Run | Yrd Mat Sub Scr Machines Disabled 1 | . . . 1 Max in Single Turn 1 | . . . 1 Machines Repaired . | . . . . Machines Dismantled . | . . . . Machines Sabotaged . | . . . . Overloaded Fab Kills . | . . . . Hacking | -11 -10 -10 -7 --------- Run | Yrd Mat Sub Scr Machines Accessed 2 | . . . 2 Terminals . | . . . . Fabricators . | . . . . Repair Stations . | . . . . Recycling Units . | . . . . Scanalyzers . | . . . . Garrison Access . | . . . . Total Hacks 5 | . . . 5 Successful 5 | . . . 5 Failed . | . . . . Catastrophic . | . . . . Database Lockouts . | . . . . Manual . | . . . . Terminals . | . . . . Fabricators . | . . . . Repair Stations . | . . . . Recycling Units . | . . . . Scanalyzers . | . . . . Garrison Access . | . . . . Terminal Hacks 5 | . . . 5 Record 4 | . . . 4 Proto ID Catalog 1 | . . . 1 Fabricator Hacks . | . . . . Repair Station Hacks . | . . . . Recycling Unit Hacks . | . . . . Scanalyzer . | . . . . Garrison Access Hacks . | . . . . Unauthorized Hacks . | . . . . Terminals . | . . . . Fabricators . | . . . . Repair Stations . | . . . . Recycling Units . | . . . . Scanalyzers . | . . . . Garrison Access . | . . . . Data Cores Recovered . | . . . . Used . | . . . . Hacking Detections . | . . . . Full Trace Events . | . . . . Feedback Events . | . . . . Feedback Blocked . | . . . . Robot Schematics Acquired . | . . . . Robots Built . | . . . . Authchips . | . . . . Time . | . . . . Total Robot Build Rating . | . . . . Part Schematics Acquired . | . . . . Parts Built . | . . . . Authchips . | . . . . Time . | . . . . Total Part Build Rating . | . . . . Part Studies Acquired . | . . . . Parts Repaired . | . . . . Time . | . . . . Parts Recycled . | . . . . Recycled Matter . | . . . . Retrieved Matter . | . . . . Retrieved Components . | . . . . Parts Scanalyzed . | . . . . Part Schematics Acquired . | . . . . Parts Damaged . | . . . . Bothacking | -11 -10 -10 -7 ------------ Run | Yrd Mat Sub Scr Used RIF Installer . | . . . . Robots Hacked . | . . . . Non-combat . | . . . . Combat . | . . . . Robot Hacks Applied . | . . . . Relay Couplers Released . | . . . . Fabnet Peak Effective % . | . . . . Robots Rewired . | . . . . Allies Hacked . | . . . . Hacks Repelled . | . . . . Allies | -11 -10 -10 -7 -------- Run | Yrd Mat Sub Scr Total Allies . | . . . . Largest Group . | . . . . Highest-Rated Group . | . . . . Highest-Rated Ally . | . . . . Total Orders . | . . . . Ally Attacks . | . . . . Total Damage . | . . . . Kills . | . . . . Allies Corrupted . | . . . . Allies Melted . | . . . . Intel | -11 -10 -10 -7 ------- Run | Yrd Mat Sub Scr Active Infowar (turns) . | . . . . Robot Analysis Total . | . . . . Derelict Logs Recovered 2 | . . . 2 Drone Launches . | . . . . Drone Recoveries . | . . . . Exploration | -11 -10 -10 -7 ------------- Run | Yrd Mat Sub Scr Turns Passed 3264 | 86 446 215 2517 Spaces Moved 1810 | 56 105 109 1540 Core 1 | 1 . . . Treads 1782 | 28 105 109 1540 Legs . | . . . . Wheels 27 | 27 . . . Hover . | . . . . Flight . | . . . . Fastest Speed 50 | 50 160 160 160 Average Speed 158 | 123 160 160 160 Slowest Speed 160 | 160 160 160 160 Overloaded Moves . | . . . . Propulsion Burnouts . | . . . . Robots Hopped . | . . . . Potential Cave-ins . | . . . . Cave-ins Triggered . | . . . . Exploration Rate (%) 29 | 4 21 7 87 Regions Visited 3 Branch Regions 2 Pre-discovered Areas 1 | . . . 1 Known Exits Taken . | . . . . Unknown Exits Taken 3 | 1 1 1 . Scrap Searched 9 | . . . 9 Spaces Dug . | . . . . Terrain Destroyed . | . . . . Melee . | . . . . Projectile . | . . . . AOE . | . . . . Terrain Rammed . | . . . . Walls Destroyed . | . . . . Machines Disabled . | . . . . Actions | -11 -10 -10 -7 --------- Run | Yrd Mat Sub Scr Total 2129 | 70 327 134 1598 Wait 205 | . 191 14 . Move 1807 | 55 104 108 1540 Hop . | . . . . Pick Up 24 | 3 1 3 17 Fast Attach 10 | 6 2 . 2 Attach 4 | 2 . . 2 Detach 3 | 2 . . 1 Swap 5 | 2 . 1 2 Drop 17 | . 1 . 16 Fire 39 | . 28 8 3 Melee . | . . . . Ram . | . . . . Kick . | . . . . Crush . | . . . . Escape Stasis . | . . . . Rewire 15 | . . . 15 Trap . | . . . . Miscellaneous . | . . . . Route ------- -11/Scrapyard -10/Materials -10/Subcaves -7/Scraptown (discovered 1 exit: [*Fac]) History --------- Turn | Location | Event 2 | -11/Scrapyard | Met Revision 17 24 | -11/Scrapyard | Discovered new exit (range 15) 87 | -11/Scrapyard | Entered Materials 309 | -10/Materials | Build established: Mutant 511 | -10/Materials | Discovered new exit (range 9) 533 | -10/Materials | Entered Subcaves 534 | -10/Subcaves | Approached by a straggling Scientist 572 | -10/Subcaves | Scientist uncovered a shortcut to Scraptown 686 | -10/Subcaves | Ambushed by swarm of Subdwellers 725 | -10/Subcaves | Core integrity fell below 50% 748 | -10/Subcaves | Entered Scraptown 755 | -7/Scraptown | Lost 3 parts (1p1u1w) 1382 | -7/Scraptown | Discovered new exit (range 5) 1430 | -7/Scraptown | Scanned Subdweller tech in exchange for log data 1435 | -7/Scraptown | Learned Factory terminal intel 1437 | -7/Scraptown | Learned Factory stockpile data 1470 | -7/Scraptown | Visited CR-KLE's Repair Center 1481 | -7/Scraptown | CR-KLE repaired 5 parts 1518 | -7/Scraptown | Visited Shadow of the Wyrm 1627 | -7/Scraptown | Learned location of Extension (-4) 1795 | -7/Scraptown | Heard Great Nut preacher, LISTEN AND RECITE! 1892 | -7/Scraptown | Visited Comm Corps 1966 | -7/Scraptown | Visited Bundlers 2071 | -7/Scraptown | Visited Symbiants 2122 | -7/Scraptown | Visited CPS Storage 2189 | -7/Scraptown | Visited UFD Registry 2591 | -7/Scraptown | Registered with UFD as "Hammerdrive" 2659 | -7/Scraptown | Visited Scrapoid Research Area 2712 | -7/Scraptown | Visited Science Guys 2784 | -7/Scraptown | Visited Science Testing Area 3048 | -7/Scraptown | Visited A0-MCA Data Center 3057 | -7/Scraptown | Given a B+ rating by A0-MCA 3066 | -7/Scraptown | Found A0-MCA's Component Scanner 3100 | -7/Scraptown | Visited Infowarlord's Domain 3195 | -7/Scraptown | Visited Observation Area 3236 | -7/Scraptown | Attacked by Scraptown defenders 3258 | -7/Scraptown | Core integrity fell below 20% 3265 | -7/Scraptown | Destroyed by W2-028(p) with EM Pulse Gun Last Messages --------------- 03257_ HV Slug penetrates Machine. 03257_ Penetrated by HV Slug. 03257_ HV Slug penetrates 0bJail. 03258_ Penetrated by Bolt. 03260_ HV Slug penetrates Machine. 03260_ Penetrated by HV Slug. 03260_ HV Slug penetrates Wall. 03260_ L-41 Fighter suffers critical hit (Destroy). 03260_ HV Slug penetrates Machine. 03260_ Penetrated by HV Slug. 03260_ Critical hit (Destroy). 03260_ Imp. Treads destroyed. 03260_ Penetrated by Bolt. 03261_ DQ-XZ9(j): "Defend Scraptown!" 03263_ Penetrated by Bolt. 03263_ HV Slug penetrates Machine. 03263_ Imp. Deuterium Engine destroyed. 03263_ HV Slug penetrates Machine. 03264_ Critical hit (Burn: +50). Map ----- +----------------------------------------------------+ | ?????????????????????????????????????????????????? | | ?????????????????????????????????????????????????? | | ?????????????????????????????????????????????????? | | ?????????????????????????????????????????????????? | | ?????????????????????????????????????????????????? | | ?????????????????????????????????????????????????? | | ?????????????????????????????????????????????????? | | ?????????????????????????????????????????????????? | | ?????????????????????????????????????????????????? | | ?????????????????????????????????????????????????? | | ?????????????????????????##??????????????????????? | | ?????????????????????????! ??????????????????????? | | ????????????????????????? ??????????????????????? | | ????????????????????????? ??????????????????????? | | ????????????????????????? ??????????????????????? | | ????????????????????????"! ??????????????????????? | | ????????????????????# ?" ??????????????????????? | | ????????????????????# ?"! ??????????????????????? | | ????????????????????# ?"! ??????????????????????? | | ????????????????????# ?# ??????????????????????? | | ????????????????????# ? ??????????????????????? | | ??????????????#?????# ?# #??????????????????????? | | ?????????????## #####Ec## ###############????????? | | ???????????"""" """"" E"" "## """""""""#????????? | | ?????????? z "## ] "#????????? | | ?????????? @"## """""" "#????????? | | ?????????? "## " " "#????????? | | ?????????? "## " "#????????? | | ? ??????? jphhl " " "#????????? | | """????????""""""""""c "## """""" "#????????? | | """????????????""""""c "## " "#????????? | | # ######???????###"" "## """"""""""#????????? | | ##????????#"" "##############????????? | | X"#????????#"" "#?????????????????????? | | " "" ##????????#"" "#?????????????????????? | | "" X"#??????###""c c"###########???????????? | | " ######### #"" "## !!!!! #???????????? | | "" c #???????????? | | "" "## #???????????? | | " ######### #"" "## #???????????? | | "" ""#??????###"" "## !!!!! #???????????? | | " "" ##????????#"" "###########???????????? | | X"?????????#"" "#?????????????????????? | | ##????????#"" "#?????????????????????? | | # ################"" "############??????????? | | """"""""""""""""""""" "##""""""""""??????????? | | """"""""""""""""""""" """""""""#?????????? | | "## """""""""#?????????? | | "## " """"#?????????? | | "## """"#?????????? | +----------------------------------------------------+ Best States ------------- Heat Dissipation 25 Energy Generation 16 Energy Capacity 290 Matter Stores 300 Matter Capacity 300 Sight Range 16 Terrain Scan Density 10 Armor Coverage 150 Evasion (%) 42 Targeting Accuracy 6 Recoil Reduction 2 Item Schematics ----------------- None Robot Schematics ------------------ None Fabricated ------------ Nothing Repaired ---------- Nothing Studied --------- None Alien Tech Used ----------------- None Achievements -------------- I Have A Map? You Again Challenges ------------ None Game ------ Seed StealthImprovedMask Manual? 0 Play Time 00:28:15 Cumulative 40.5 hours Start 2026.04.22 @ 12:01:59 End 2026.04.22 @ 12:35:09 Sessions 1 Manual Loads 0 Difficulty Rogue Special Mode None Game No. 52 Rogue 52 Adventurer 0 Explorer 0 Win Type - Total 1 Types 1/0/0/0/0/0/0/0/0/0 Lore% 39 Gallery% 33 Achievement% 29 Wizard Run 0 Options --------- Layout 1 ASCII 0 Keyboard 0 Movement Vi Keybinds 0 Fullscreen 1 Font 24/Smallcaps Map View 50x40 Zoom Use 0% Tactical HUD 1 Map Filters NONE Filters NONE Steam 1 RUN: b6ffe924-7d99-46c2-bb2a-d78105ba98ba